bitfinex/quotes_SOLUSD_20241022
["timestamp","ask_amount","ask_price","bid_price","bid_amount"]
[1729594318405,6.0271,165.92,165.88,23.776884]
[1729594325737,6.0274,165.91,165.88,23.776884]
[1729594326113,6.028,165.9,165.88,23.776884]
[1729594326320,6.0274,165.91,165.88,23.776884]
[1729594330065,6.028,165.89,165.88,23.776884]
[1729594330730,6.0277,165.9,165.88,23.776884]
[1729594337050,20.0,165.95,165.88,23.776884]
[1729594337252,6.0268,165.93,165.87,23.776884]
[1729594337450,6.0268,165.93,165.89,23.776884]
[1729594337651,6.0268,165.93,165.87,23.776884]
[1729594337953,6.0271,165.92,165.89,23.776884]
[1729594339452,6.0266,165.93,165.83,9.52789095]
[1729594339748,6.0278,165.9,165.84,1.50888719]
[1729594339930,6.0278,165.9,165.85,1.50888719]
[1729594340130,6.0278,165.9,165.86,1.50888719]
[1729594340328,6.0278,165.9,165.87,1.50888719]
[1729594340549,6.0278,165.9,165.88,1.50888719]
[1729594340747,6.0278,165.9,165.84,23.776884]
[1729594341054,6.0278,165.9,165.86,23.776884]
[1729594341273,6.0278,165.9,165.87,1.50882959]
[1729594341444,6.0278,165.9,165.88,25.28571359]
[1729594341649,6.0278,165.9,165.88,23.776884]
[1729594349866,6.0278,165.9,165.89,1.50882888]
[1729594350051,20.0,165.95,165.9,23.776884]
[1729594350383,6.0259,165.95,165.92,23.776884]
[1729594350681,6.0268,165.93,165.87,8.91303855]
[1729594350845,6.0269,165.93,165.88,25.28549479]
[1729594351046,6.027,165.92,165.9,23.776884]
[1729594353380,30.7299,165.96,165.9,23.776884]
[1729594353581,6.0259,165.95,165.9,23.776884]
[1729594353883,6.0259,165.95,165.83,17.1978524]
[1729594353884,6.0262,165.95,165.92,23.776884]
[1729594354378,15.6655,165.96,165.92,23.776884]
[1729594354580,6.0253,165.97,165.92,23.776884]
[1729594354758,15.3918,166.0,165.92,23.776884]
[1729594354956,20.0,165.99,165.92,23.776884]
[1729594355376,6.0244,165.99,165.93,8.91303855]
[1729594355577,21.4159,166.0,165.94,25.28521348]
[1729594355751,6.023,166.03,165.96,23.776884]
[1729594355958,6.0244,166.0,165.96,23.776884]
[1729594356261,30.4484,166.04,165.96,23.776884]
[1729594356262,6.0244,165.99,165.96,23.776884]
[1729594360967,6.0248,165.98,165.96,23.776884]
[1729594372787,6.0251,165.97,165.96,23.776884]
[1729594381963,6.0251,165.97,165.89,15.5445]
[1729594382173,6.0251,165.97,165.93,23.776884]
[1729594382374,15.3918,166.04,165.93,23.776884]
[1729594382577,6.0258,165.96,165.93,23.776884]
[1729594387879,6.0252,165.97,165.93,23.776884]
[1729594392175,6.0243,166.0,165.94,8.91303855]
[1729594392398,6.0243,166.0,165.95,23.776884]
[1729594392582,6.0235,166.02,165.96,8.91303855]
[1729594392776,6.0235,166.02,165.97,23.776884]
[1729594392977,6.0238,166.01,165.97,23.776884]
[1729594395486,6.0238,166.01,165.96,23.776884]
[1729594400883,15.3918,166.04,165.96,23.776884]
[1729594401096,6.0241,166.0,165.96,23.776884]
[1729594404281,15.3918,166.04,165.9,0.08126341]
[1729594404487,15.3918,166.04,165.94,8.91303855]
[1729594404488,6.0245,165.99,165.94,8.91303855]
[1729594404684,6.0245,165.99,165.95,1.50810344]
[1729594405292,6.0242,166.0,165.95,1.50810344]
[1729594405699,15.3918,166.04,165.96,23.776884]
[1729594406007,6.0245,165.99,165.95,23.776884]
[1729594406309,6.0245,165.99,165.97,23.776884]
[1729594406517,6.0248,165.98,165.97,23.776884]
[1729594410218,6.0248,165.98,165.97,25.28499118]
[1729594410923,6.0248,165.98,165.97,23.776884]
[1729594411213,6.0248,165.98,165.97,25.2849698]
[1729594413102,6.0248,165.98,165.97,1.5080858]
[1729594414713,6.0248,165.98,165.92,23.776884]
[1729594415011,6.0248,165.98,165.93,1.50815821]
[1729594415221,35.0579,166.03,165.94,23.776884]
[1729594415222,20.0,166.03,165.94,23.776884]
[1729594415516,6.0251,165.98,165.96,23.776884]
[1729594415712,6.0251,165.98,165.97,1.50815821]
[1729594418416,6.0251,165.98,165.94,23.776884]
[1729594418615,6.0251,165.98,165.97,1.5081809]
[1729594419426,6.0243,166.0,165.97,1.5081809]
[1729594419600,6.0243,166.0,165.98,1.5081809]
[1729594419798,6.0243,166.0,165.94,23.776884]
[1729594420122,6.0243,166.0,165.96,23.776884]
[1729594420325,6.0243,166.0,165.97,1.50810426]
[1729594420525,15.3918,166.04,165.98,1.50810426]
[1729594420736,15.3918,166.04,165.99,1.50810426]
[1729594420737,6.0237,166.01,165.99,1.50810426]
[1729594421034,6.0237,166.01,165.96,23.776884]
[1729594421239,6.0237,166.01,165.98,23.776884]
[1729594421537,6.0237,166.01,165.99,1.50807516]
[1729594421710,6.024,166.0,165.98,23.776884]
[1729594421920,6.024,166.0,165.99,1.50808501]
[1729594422126,6.024,166.0,165.98,23.776884]
[1729594422441,6.024,166.0,165.99,1.50808475]
[1729594424233,15.3918,166.04,165.99,1.50808475]
[1729594424538,6.0236,166.02,165.98,23.776884]
[1729594424725,6.0236,166.02,166.0,23.776884]
[1729594424913,15.3918,166.04,166.0,23.776884]
[1729594424914,6.023,166.03,166.0,23.776884]
[1729594425118,21.4145,166.04,166.01,1.50789018]
[1729594425329,21.4145,166.04,166.0,23.776884]
[1729594425627,21.4145,166.04,166.01,1.50782268]
[1729594425934,6.0231,166.03,166.0,23.776884]
[1729594426115,6.0231,166.03,166.01,1.5078218]
[1729594426311,6.0231,166.03,166.0,23.776884]
[1729594426516,6.0231,166.03,166.01,1.50780263]
[1729594426833,6.0231,166.03,166.0,23.776884]
[1729594427035,6.0231,166.03,166.01,1.50779417]
[1729594427223,6.0231,166.03,166.0,23.776884]
[1729594427420,6.0231,166.03,166.01,1.50779417]
[1729594427633,6.0231,166.03,166.0,23.776884]
[1729594427852,6.0231,166.03,166.01,1.50779417]
[1729594428017,6.0231,166.03,166.0,23.776884]
[1729594428519,6.0226,166.05,166.0,23.776884]
[1729594428733,6.0226,166.05,166.02,23.776884]
[1729594429541,6.0227,166.04,166.02,23.776884]
[1729594433840,6.023,166.03,165.94,15.3438]
[1729594434039,6.024,166.01,165.94,24.25683855]
[1729594435544,6.024,166.01,165.95,23.776884]
[1729594442857,6.024,166.01,165.97,23.776884]
[1729594443041,6.024,166.01,165.95,23.776884]
[1729594444950,6.024,166.01,165.97,23.776884]
[1729594445137,6.024,166.01,165.98,1.50790005]
[1729594445339,6.024,166.01,165.99,1.50790005]
[1729594445659,6.024,166.01,165.95,23.776884]
[1729594445845,6.024,166.01,165.97,23.776884]
[1729594446155,6.024,166.01,165.98,1.50791265]
[1729594446359,6.024,166.01,165.99,1.50791265]
[1729594446545,6.024,166.01,165.95,23.776884]
[1729594446852,6.024,166.01,165.97,23.776884]
[1729594447059,6.024,166.01,165.99,23.776884]
[1729594447273,6.024,166.01,165.97,23.776884]
[1729594447429,6.024,166.01,165.99,23.776884]
[1729594447630,6.024,166.01,165.97,23.776884]
[1729594447833,6.024,166.01,165.99,23.776884]
[1729594448050,6.024,166.01,165.97,23.776884]
[1729594448250,6.024,166.01,165.99,23.776884]
[1729594451468,6.024,166.01,166.0,1.50791198]
[1729594451757,6.024,166.01,165.99,23.776884]
[1729594460856,20.0,166.06,165.99,23.776884]
[1729594461049,6.0222,166.05,165.99,23.776884]
[1729594461371,30.507,166.08,165.99,23.776884]
[1729594461372,20.0,166.07,165.99,23.776884]
[1729594461555,6.0227,166.04,165.99,23.776884]
[1729594463345,6.0221,166.06,165.99,23.776884]
[1729594465058,6.0216,166.07,166.01,23.776884]
[1729594465238,6.0208,166.1,166.03,23.776884]
[1729594465438,6.0208,166.1,166.05,23.776884]
[1729594465655,6.0208,166.1,166.03,23.776884]
[1729594465855,6.0201,166.11,166.05,23.776884]
[1729594466462,6.0201,166.11,166.07,23.776884]
[1729594466639,6.0201,166.11,166.05,23.776884]
[1729594466961,6.0201,166.11,166.0,0.1]
[1729594466962,16.0547,166.15,166.07,23.776884]
[1729594467256,6.0193,166.14,166.07,23.776884]
[1729594468141,6.0183,166.16,166.09,23.776884]
[1729594472360,6.0186,166.15,166.09,23.776884]
[1729594472559,15.134,166.23,166.14,23.776884]
[1729594472863,6.0161,166.22,166.16,23.776884]
[1729594473838,15.134,166.23,166.16,23.776884]
[1729594474042,6.0161,166.22,166.16,23.776884]
[1729594474264,15.134,166.23,166.17,8.91303855]
[1729594474469,6.0157,166.23,166.18,23.776884]
[1729594474846,6.0164,166.22,166.18,23.776884]
[1729594475151,6.0146,166.26,166.18,23.776884]
[1729594475353,6.0153,166.25,166.18,23.776884]
[1729594475554,6.0153,166.25,166.2,23.776884]
[1729594483679,6.0154,166.24,166.2,23.776884]
[1729594484370,16.6162,166.27,166.2,23.776884]
[1729594484546,6.0157,166.23,166.2,23.776884]
[1729594485350,6.0161,166.22,166.2,23.776884]
[1729594485557,16.6162,166.27,166.2,23.776884]
[1729594485771,6.0158,166.23,166.2,23.776884]
[1729594485966,16.6162,166.27,166.2,23.776884]
[1729594486459,6.0158,166.23,166.2,23.776884]
[1729594496480,6.0154,166.24,166.2,23.776884]
[1729594497070,6.015,166.25,166.2,23.776884]
[1729594500380,22.6308,166.27,166.2,23.776884]
[1729594501671,6.0147,166.26,166.2,23.776884]
[1729594506485,6.0144,166.27,166.21,8.91303855]
[1729594506787,6.0144,166.27,166.22,23.776884]
[1729594507385,15.4573,166.31,166.22,23.776884]
[1729594507586,6.0135,166.3,166.24,23.776884]
[1729594507811,15.4573,166.31,166.24,23.776884]
[1729594508386,21.4702,166.31,166.24,23.776884]
[1729594509300,6.0129,166.31,166.24,23.776884]
[1729594511780,6.0129,166.31,166.24,8.91303855]
[1729594512385,6.0129,166.31,166.25,23.776884]
[1729594518498,6.0129,166.31,166.25,23.776884]
[1729594535308,6.011,166.36,166.29,23.776884]
[1729594536299,6.0096,166.4,166.33,23.776884]
[1729594537186,0.6148524,166.41,166.33,23.776884]
[1729594537386,6.01,166.39,166.33,23.776884]
[1729594539009,6.01,166.39,166.34,8.91303855]
[1729594539310,6.0097,166.4,166.35,23.776884]
[1729594540586,6.01,166.39,166.35,23.776884]
[1729594540787,0.6148524,166.41,166.35,23.776884]
[1729594541001,6.0096,166.4,166.35,23.776884]
[1729594541715,0.6148524,166.41,166.35,23.776884]
[1729594542014,0.6148524,166.41,166.36,8.91303855]
[1729594542310,0.6148524,166.41,166.37,23.776884]
[1729594542711,0.6148524,166.41,166.38,8.91303855]
[1729594543004,0.6148524,166.41,166.39,23.776884]
[1729594546816,0.6148524,166.41,166.4,32.68992255]
[1729594549594,0.6148524,166.41,166.4,23.776884]
[1729594549917,0.6148524,166.41,166.38,8.91303855]
[1729594549918,0.6148524,166.41,166.39,23.776884]
[1729594551308,0.6148524,166.41,166.4,32.68992255]
[1729594552592,0.6148524,166.41,166.4,23.776884]
[1729594552993,0.6148524,166.41,166.33,6.71014641]
[1729594553205,6.0096,166.4,166.33,9.09430196]
[1729594553612,6.0096,166.4,166.33,9.01303855]
[1729594553813,6.01,166.39,166.33,8.91303855]
[1729594554017,0.6148524,166.41,166.33,8.91303855]
[1729594554227,6.0096,166.4,166.33,8.91303855]
[1729594555304,0.6148524,166.41,166.34,23.776884]
[1729594555711,6.0096,166.4,166.34,23.776884]
[1729594558797,0.6148524,166.41,166.28,90.59645052]
[1729594559000,6.0114,166.35,166.28,99.32822566]
[1729594559209,20.6148524,166.41,166.28,99.32822566]
[1729594559210,20.6148524,166.41,166.28,76.32952566]
[1729594559409,6.0118,166.34,166.28,76.32952566]
[1729594559613,20.6148524,166.41,166.28,76.32952566]
[1729594559816,15.4418,166.35,166.26,8.91303855]
[1729594560000,15.4418,166.35,166.23,21.91416341]
[1729594560001,6.0128,166.32,166.24,8.99430196]
[1729594560204,15.4418,166.35,166.24,15.19447997]
[1729594560412,6.0128,166.32,166.24,15.19447997]
[1729594560613,6.0128,166.32,166.24,15.27574338]
[1729594560809,6.0129,166.31,166.24,15.19447997]
[1729594561822,6.0129,166.31,166.25,23.776884]
[1729594562834,15.4418,166.4,166.3,0.1]
[1729594563007,6.0099,166.39,166.31,23.776884]
[1729594563207,21.4514,166.4,166.33,23.776884]
[1729594563818,15.4418,166.4,166.33,23.776884]
[1729594564024,6.01,166.39,166.33,23.776884]
[1729594564410,15.4418,166.4,166.34,8.91303855]
[1729594564609,15.4418,166.4,166.35,23.776884]
[1729594565114,15.4418,166.4,166.36,8.91303855]
[1729594565428,15.4418,166.4,166.37,23.776884]
[1729594566411,0.6148524,166.41,166.37,23.776884]
[1729594568634,0.6148524,166.41,166.39,23.776884]
[1729594574545,6.6240524,166.41,166.39,23.776884]
[1729594574723,0.6148524,166.41,166.39,23.776884]
[1729594575118,6.0096,166.4,166.39,23.776884]
[1729594582344,22.0145524,166.41,166.39,23.776884]
[1729594582853,16.0050524,166.41,166.39,23.776884]
[1729594583054,6.0096,166.4,166.39,23.776884]
[1729594584036,6.0096,166.4,166.31,0.18126341]
[1729594584232,6.0096,166.4,166.33,32.68992255]
[1729594584546,6.0096,166.4,166.31,23.95814741]
[1729594584547,6.0102,166.39,166.35,23.776884]
[1729594585542,6.0102,166.39,166.34,23.776884]
[1729594585741,6.0102,166.39,166.35,1.50421289]
[1729594585946,22.0145524,166.41,166.36,23.776884]
[1729594586453,6.0097,166.4,166.36,23.776884]
[1729594589279,6.0097,166.4,166.37,1.50418976]
[1729594589550,6.0097,166.4,166.38,23.776884]
[1729594592138,22.0145524,166.41,166.38,23.776884]
[1729594592542,0.6148524,166.41,166.38,23.776884]
[1729594592858,0.6148524,166.41,166.4,23.776884]
[1729594593551,0.6148524,166.41,166.4,25.28098612]
[1729594594354,0.6148524,166.41,166.4,23.776884]
[1729594594658,0.6148524,166.41,166.4,25.28098355]
[1729594597356,0.6148524,166.41,166.4,25.28098219]
[1729594598630,0.6148524,166.41,166.4,1.50409819]
[1729594599856,0.6148524,166.41,166.4,25.28098219]
[1729594601549,0.6148524,166.41,166.4,25.38098219]
[1729594601952,0.6148524,166.41,166.4,23.876884]
[1729594602255,0.6148524,166.41,166.4,25.38062339]
[1729594605258,0.6148524,166.41,166.4,25.38059976]
[1729594606663,0.6148524,166.41,166.4,25.46186317]
[1729594608352,0.6148524,166.41,166.4,25.38059976]
[1729594608557,0.6148524,166.41,166.4,25.46186317]
[1729594609040,0.6148524,166.41,166.4,25.46185081]
[1729594609456,0.6148524,166.41,166.4,25.3805874]
[1729594609650,0.6148524,166.41,166.4,25.46185081]
[1729594611549,0.6148524,166.41,166.4,25.3805874]
[1729594611750,0.6148524,166.41,166.4,10.51674195]
[1729594612669,0.6148524,166.41,166.4,10.51675586]
[1729594613050,0.6148524,166.41,166.4,34.29363986]
[1729594614056,0.6148524,166.41,166.4,25.28060131]
[1729594614267,0.6148524,166.41,166.4,34.29363986]
[1729594616097,0.6148524,166.41,166.4,32.78992255]
[1729594616379,0.6148524,166.41,166.4,34.29363157]
[1729594617460,0.6148524,166.41,166.4,25.28059302]
[1729594617654,0.6148524,166.41,166.4,1.50370902]
[1729594618072,0.6148524,166.41,166.4,10.41674757]
[1729594619155,0.6148524,166.41,166.4,34.19363157]
[1729594620172,0.6148524,166.41,166.4,34.19370493]
[1729594622375,0.6148524,166.41,166.4,25.28066638]
[1729594622591,0.6148524,166.41,166.4,1.50378238]
[1729594623981,0.6148524,166.41,166.37,8.91303855]
[1729594624195,0.6148524,166.41,166.38,23.776884]
[1729594624560,0.6148524,166.41,166.4,8.91303855]
[1729594624762,0.6148524,166.41,166.4,34.19388066]
[1729594625675,0.6148524,166.41,166.4,32.68992255]
[1729594625882,0.6148524,166.41,166.4,34.19371735]
[1729594629373,0.6148524,166.41,166.4,34.29371735]
[1729594629682,15.7475,166.54,166.43,0.1]
[1729594629860,6.0056,166.51,166.47,23.776884]
[1729594632382,6.0056,166.51,166.46,23.776884]
[1729594632593,6.0056,166.51,166.48,23.776884]
[1729594636674,6.0049,166.53,166.48,23.776884]
[1729594637378,6.0053,166.52,166.48,23.776884]
[1729594637790,6.0053,166.52,166.47,23.776884]
[1729594642185,15.7475,166.54,166.47,23.776884]
[1729594642485,15.7475,166.54,166.49,23.776884]
[1729594643400,21.7521,166.54,166.49,23.776884]
[1729594645997,21.7521,166.54,166.51,23.776884]
[1729594649900,6.0046,166.54,166.51,23.776884]
[1729594651186,15.0087,166.57,166.5,23.776884]
[1729594651697,20.0,166.57,166.46,48.27028499]
[1729594651999,6.0061,166.5,166.47,1.50335446]
[1729594652301,6.0057,166.51,166.48,1.50335446]
[1729594652491,6.0057,166.51,166.49,1.50340756]
[1729594652700,6.0057,166.51,166.44,9.09430196]
[1729594652880,6.0057,166.51,166.45,1.50341552]
[1729594653080,6.0057,166.51,166.46,1.50341552]
[1729594653301,6.0057,166.51,166.48,23.776884]
[1729594653493,6.0057,166.51,166.49,1.50341552]
[1729594653711,6.0057,166.51,166.48,23.776884]
[1729594653887,6.0057,166.51,166.49,1.50339906]
[1729594654299,6.0057,166.51,166.5,1.50326062]
[1729594657407,6.0057,166.51,166.47,23.776884]
[1729594657902,6.0057,166.51,166.48,1.50313793]
[1729594658087,6.0057,166.51,166.49,1.50313793]
[1729594658286,6.0057,166.51,166.5,1.50313793]
[1729594661113,6.0057,166.51,166.5,1.50313791]
[1729594663213,20.0,166.57,166.51,23.776884]
[1729594663501,6.0042,166.55,166.52,1.50313791]
[1729594663708,6.0042,166.55,166.51,23.776884]
[1729594663887,16.4685524,166.58,166.52,1.5030959]
[1729594664091,6.0038,166.56,166.51,23.776884]
[1729594664290,6.0038,166.56,166.52,1.50309201]
[1729594664593,6.0038,166.56,166.51,23.776884]
[1729594664793,6.0038,166.56,166.52,1.50309201]
[1729594665007,6.0038,166.56,166.51,23.776884]
[1729594665194,6.0038,166.56,166.53,23.776884]
[1729594665400,22.4719524,166.58,166.54,1.50293604]
[1729594666410,6.0036,166.57,166.54,1.50293604]
[1729594667814,22.4716524,166.58,166.54,1.50293604]
[1729594668506,22.4716524,166.58,166.53,23.776884]
[1729594668817,22.4716524,166.58,166.54,1.50290008]
[1729594669016,22.4716524,166.58,166.53,23.776884]
[1729594669315,6.0037,166.57,166.53,23.776884]
[1729594669912,6.0037,166.57,166.52,23.776884]
[1729594670102,6.0037,166.57,166.53,1.50290076]
[1729594671100,16.4685524,166.58,166.53,1.50290076]
[1729594671308,6.0034,166.57,166.53,1.50290076]
[1729594671613,22.4716524,166.58,166.53,1.50290076]
[1729594672121,6.0034,166.57,166.53,1.50290076]
[1729594672316,22.4716524,166.58,166.54,1.50284429]
[1729594672619,22.4716524,166.58,166.52,23.776884]
[1729594672795,22.4716524,166.58,166.54,23.776884]
[1729594672994,22.4716524,166.58,166.52,23.776884]
[1729594673195,22.4716524,166.58,166.54,23.776884]
[1729594681109,16.4685524,166.58,166.5,48.25868852]
[1729594681309,16.4685524,166.58,166.44,9.2219375]
[1729594681310,6.0061,166.5,166.42,6.77796341]
[1729594681520,6.0061,166.5,166.43,10.41620204]
[1729594681719,6.0061,166.5,166.44,1.50316349]
[1729594682028,15.0096,166.56,166.45,1.50316349]
[1729594682029,6.0064,166.49,166.45,1.50316349]
[1729594682206,6.0064,166.49,166.46,1.50316349]
[1729594682410,6.0064,166.49,166.47,1.50320948]
[1729594682610,6.0064,166.49,166.48,1.50320948]
[1729594683220,6.0064,166.49,166.43,1.50320948]
[1729594683530,15.0105,166.55,166.44,1.50320948]
[1729594683531,6.0068,166.48,166.44,1.50320948]
[1729594683830,6.0068,166.48,166.45,1.50320948]
[1729594684127,15.1177,166.55,166.46,1.50320948]
[1729594684128,6.007,166.47,166.46,1.50320948]
[1729594684328,6.007,166.47,166.41,1.50320948]
[1729594684512,6.0075,166.46,166.42,25.28009348]
[1729594684840,6.0075,166.46,166.43,1.50320948]
[1729594685019,6.0075,166.46,166.42,23.776884]
[1729594685020,6.0075,166.46,166.44,1.50320948]
[1729594685229,6.0075,166.46,166.45,1.50320948]
[1729594685925,6.0075,166.46,166.41,1.50352072]
[1729594686109,6.0075,166.46,166.42,1.50352072]
[1729594686311,6.0075,166.46,166.43,1.50352072]
[1729594686510,6.0075,166.46,166.44,1.50352072]
[1729594686724,6.0075,166.46,166.45,1.50352072]
[1729594686918,21.1243,166.51,166.45,1.50352072]
[1729594687107,6.0065,166.49,166.46,1.50352072]
[1729594687306,6.0065,166.49,166.47,1.50352072]
[1729594687626,6.0065,166.49,166.44,23.776884]
[1729594687831,6.0065,166.49,166.45,1.50341157]
[1729594688006,6.0068,166.48,166.46,1.50341157]
[1729594688208,6.0068,166.48,166.47,1.50341157]
[1729594689432,6.0064,166.49,166.47,1.50341157]
[1729594689634,6.0064,166.49,166.48,1.50341157]
[1729594689921,6.006,166.5,166.48,1.50341157]
[1729594690232,6.006,166.5,166.49,1.50341157]
[1729594690428,6.006,166.5,166.46,23.776884]
[1729594690617,6.006,166.5,166.47,1.50341157]
[1729594690811,6.006,166.5,166.48,1.50341157]
[1729594691019,6.006,166.5,166.49,1.50341157]
[1729594691731,6.006,166.5,166.46,23.776884]
[1729594691732,6.006,166.5,166.47,1.50341157]
[1729594691938,6.006,166.5,166.46,23.776884]
[1729594691939,6.006,166.5,166.48,1.50341157]
[1729594692119,6.006,166.5,166.49,1.50341157]
[1729594692514,6.006,166.5,166.47,1.50341157]
[1729594692714,6.006,166.5,166.48,1.50341157]
[1729594692915,6.006,166.5,166.49,1.50341157]
[1729594693110,6.006,166.5,166.47,1.50329035]
[1729594693314,6.006,166.5,166.48,1.50329035]
[1729594693512,6.006,166.5,166.49,1.50329035]
[1729594696619,6.0068,166.48,166.45,23.776884]
[1729594696821,6.0068,166.48,166.46,1.50332527]
[1729594697038,6.0068,166.48,166.47,1.50332527]
[1729594700544,6.0056,166.51,166.47,1.50332527]
[1729594700843,6.0056,166.51,166.48,1.50332527]
[1729594701034,6.0056,166.51,166.49,1.50332527]
[1729594701221,6.0056,166.51,166.5,1.50332527]
[1729594702316,6.0054,166.52,166.5,1.50332527]
[1729594702647,6.0056,166.51,166.47,23.776884]
[1729594702819,6.0056,166.51,166.48,1.50323279]
[1729594703025,6.0056,166.51,166.49,1.50323279]
[1729594703314,6.0056,166.51,166.5,1.50323279]
[1729594703934,6.0053,166.52,166.5,1.50323279]
[1729594704138,6.0056,166.51,166.5,1.50323279]
[1729594704335,6.006,166.5,166.47,23.776884]
[1729594704643,6.006,166.5,166.48,1.50322359]
[1729594704844,6.006,166.5,166.49,1.50322359]
[1729594706726,20.0,166.53,166.42,10.41626214]
[1729594706935,20.0,166.53,166.43,1.50322359]
[1729594707119,20.0,166.53,166.44,1.50322359]
[1729594707321,20.0,166.53,166.45,1.50322359]
[1729594707544,6.007,166.47,166.46,1.50322359]
[1729594709119,6.6168,166.48,166.39,1.50322359]
[1729594709349,6.0084,166.44,166.4,1.50322359]
[1729594709541,6.0084,166.44,166.41,1.50322359]
[1729594709719,6.0084,166.44,166.42,1.50322359]
[1729594709922,6.0084,166.44,166.43,1.50322359]
[1729594712441,6.0084,166.44,166.38,8.91303855]
[1729594712632,6.0084,166.44,166.39,25.28054281]
[1729594712829,6.0084,166.44,166.4,1.50365881]
[1729594713032,6.0084,166.44,166.41,1.50365881]
[1729594713227,6.0084,166.44,166.42,1.50365881]
[1729594713422,6.0084,166.44,166.43,1.50365881]
[1729594713633,6.6168,166.48,166.43,1.50365881]
[1729594713841,6.0074,166.47,166.44,1.50365881]
[1729594714136,6.0074,166.47,166.45,1.50365881]
[1729594714341,6.0074,166.47,166.46,1.50365881]
[1729594714541,15.3735,166.49,166.42,23.776884]
[1729594714748,6.0075,166.46,166.43,1.50365881]
[1729594714933,6.0075,166.46,166.44,1.50365881]
[1729594715247,6.0075,166.46,166.41,23.776884]
[1729594715448,6.0075,166.46,166.45,1.5035675]
[1729594716327,6.0078,166.45,166.41,8.91303855]
[1729594716631,30.3894,166.49,166.43,32.68992255]
[1729594716632,15.3735,166.49,166.43,32.68992255]
[1729594716832,15.3735,166.49,166.44,1.5036054]
[1729594716833,6.007,166.48,166.44,1.5036054]
[1729594717028,6.007,166.48,166.45,1.5036054]
[1729594717230,6.007,166.48,166.46,1.5036054]
[1729594717439,6.007,166.48,166.43,32.68992255]
[1729594717440,6.007,166.48,166.47,1.5036054]
[1729594717743,6.0071,166.47,166.43,32.68992255]
[1729594718043,15.3735,166.49,166.44,1.50338649]
[1729594718244,6.007,166.48,166.45,1.50338649]
[1729594718446,6.007,166.48,166.46,1.50338649]
[1729594718647,6.007,166.48,166.47,1.50338649]
[1729594719141,6.0071,166.47,166.44,1.50338649]
[1729594719342,6.0071,166.47,166.45,1.50338719]
[1729594719546,6.0071,166.47,166.46,1.50338719]
[1729594719936,6.0071,166.47,166.44,1.50338719]
[1729594720246,6.0071,166.47,166.45,1.50338719]
[1729594720465,6.0071,166.47,166.46,1.50338719]
[1729594720948,6.0071,166.47,166.44,1.50338719]
[1729594721157,15.3735,166.49,166.45,1.50338719]
[1729594721327,6.0074,166.46,166.42,23.776884]
[1729594721525,6.0074,166.46,166.43,1.50351151]
[1729594721743,6.0074,166.46,166.44,1.50351151]
[1729594721954,6.0074,166.46,166.45,1.50351151]
[1729594722732,6.0074,166.46,166.45,1.50345858]
[1729594722943,6.0074,166.46,166.42,23.776884]
[1729594723151,6.0074,166.46,166.43,1.50346615]
[1729594723338,6.0074,166.46,166.42,23.776884]
[1729594723738,6.0074,166.46,166.43,1.50344814]
[1729594724068,6.0074,166.46,166.44,1.50344814]
[1729594724260,6.0074,166.46,166.45,1.50344814]
[1729594725035,15.3735,166.49,166.45,1.50344814]
[1729594725241,6.007,166.48,166.46,1.50344814]
[1729594725443,6.007,166.48,166.47,1.50344814]
[1729594725652,6.007,166.48,166.44,1.50344814]
[1729594725842,6.007,166.48,166.45,1.50344814]
[1729594726159,6.007,166.48,166.46,1.50344814]
[1729594726333,6.007,166.48,166.47,1.50344814]
[1729594726654,15.3735,166.49,166.44,1.50344814]
[1729594726862,20.0,166.51,166.45,1.50344814]
[1729594727158,20.0,166.51,166.46,1.50344814]
[1729594727457,20.0,166.51,166.47,1.50344814]
[1729594727757,20.0,166.51,166.44,23.776884]
[1729594727961,20.0,166.51,166.45,1.50344148]
[1729594728150,20.0,166.51,166.46,1.50344148]
[1729594728352,21.2766,166.52,166.47,1.50344148]
[1729594728541,21.2766,166.52,166.44,23.776884]